bitfinex-derivatives/quotes_SOLF0:USTF0_20241016
["timestamp","ask_amount","ask_price","bid_price","bid_amount"]
[1729092159112,5.68,155.38,155.33,3.2193]
[1729092159113,3.2189,155.36,155.33,3.2193]
[1729092159305,3.2189,155.36,155.27,18.52]
[1729092159306,5.68,155.38,155.32,3.21249121]
[1729092159611,3.2191,155.35,155.29,5.68]
[1729092161319,3.2191,155.35,155.32,3.2195]
[1729092161516,3.2193,155.34,155.31,3.22787344]
[1729092161716,3.2193,155.34,155.29,5.68]
[1729092161915,3.2193,155.34,155.3,3.2198]
[1729092162111,3.2193,155.34,155.29,5.68]
[1729092162420,3.2196,155.32,155.29,3.2201]
[1729092162718,3.2196,155.32,155.26,7.0799]
[1729092163020,3.2198,155.31,155.28,3.2203]
[1729092163217,3.2198,155.31,155.26,7.0799]
[1729092163616,3.2198,155.31,155.28,3.2203]
[1729092163918,21.7397,155.32,155.28,3.2203]
[1729092166323,18.52,155.32,155.26,1.3999]
[1729092166511,18.52,155.31,155.22,3.14904701]
[1729092166713,18.52,155.31,155.23,5.68]
[1729092167222,3.2201,155.3,155.23,5.68]
[1729092167420,21.2127,155.33,155.24,18.52]
[1729092167633,6.4364,155.39,155.34,3.219]
[1729092167634,3.2182,155.39,155.34,3.219]
[1729092167818,18.52,155.36,155.26,18.52]
[1729092168120,21.7392,155.34,155.29,3.22]
[1729092168328,18.52,155.34,155.29,6.51942842]
[1729092168523,7.0475,155.39,155.21,2.652]
[1729092168524,18.52,155.3,155.21,2.652]
[1729092168723,1.3675,155.39,155.22,3.2215]
[1729092168724,3.2206,155.27,155.22,3.2215]
[1729092169119,18.52,155.28,155.22,3.2215]
[1729092169924,3.2207,155.27,155.22,3.2215]
[1729092170321,18.52,155.29,155.2,8.86748896]
[1729092170619,3.2206,155.28,155.24,3.2213]
[1729092171024,3.2206,155.28,155.23,3.2214]
[1729092171425,8.3225,155.3,155.2,27.38748896]
[1729092171626,8.3225,155.3,155.27,3.2205]
[1729092171824,8.3225,155.3,155.22,18.52]
[1729092172126,24.2,155.32,155.27,3.2206]
[1729092172527,27.4198,155.32,155.27,3.2206]
[1729092173427,3.22,155.3,155.26,3.2208]
[1729092173927,21.74,155.3,155.26,3.2208]
[1729092174835,18.52,155.3,155.23,1.3336]
[1729092175035,3.2202,155.29,155.25,3.2209]
[1729092175230,18.52,155.28,155.2,3.18748896]
[1729092175429,3.2209,155.26,155.22,3.2215]
[1729092175629,3.2209,155.26,155.22,3.2597116]
[1729092175928,3.2209,155.26,155.18,24.2]
[1729092176231,3.2207,155.27,155.18,24.2]
[1729092176423,3.2207,155.27,155.18,27.45765262]
[1729092176624,3.2207,155.27,155.23,3.2213]
[1729092177726,3.2208,155.27,155.23,3.2214]
[1729092177929,24.2,155.28,155.18,27.45765262]
[1729092178234,3.221,155.26,155.22,3.2216]
[1729092180534,3.2212,155.25,155.21,3.2218]
[1729092180727,18.52,155.26,155.18,3.25765262]
[1729092180927,24.2,155.28,155.18,18.52]
[1729092181231,5.8,155.3,155.22,18.52]
[1729092181524,2.692,155.31,155.23,1.4285]
[1729092181729,2.692,155.31,155.23,4.63236302]
[1729092181932,2.692,155.31,155.23,1.4285]
[1729092182126,5.9119,155.31,155.23,1.4285]
[1729092182647,24.32,155.32,155.28,3.2204]
[1729092182823,24.32,155.34,155.24,18.52]
[1729092183019,18.52,155.36,155.26,18.52]
[1729092183220,5.8,155.35,155.3,3.2198]
[1729092183527,3.2193,155.34,155.3,3.2198]
[1729092183725,3.2193,155.34,155.26,27.55974695]
[1729092183928,3.2191,155.35,155.31,3.2197]
[1729092184134,24.32,155.36,155.31,3.2197]
[1729092184928,3.219,155.35,155.26,27.55974695]
[1729092185528,5.8,155.36,155.26,27.55974695]
[1729092185727,3.2195,155.33,155.26,9.03974695]
[1729092186129,3.2195,155.33,155.28,3.2203]
[1729092186735,3.2193,155.34,155.3,3.22]
[1729092187232,9.0189,155.36,155.32,3.2196]
[1729092188239,18.52,155.37,155.28,18.52]
[1729092188527,3.2185,155.38,155.34,3.2191]
[1729092188732,3.2185,155.38,155.3,24.32]
[1729092189437,3.2186,155.37,155.34,3.2191]
[1729092189630,27.1118,155.39,155.34,3.14868239]
[1729092189828,38.2818,155.39,155.33,3.2193]
[1729092190028,32.4818,155.39,155.34,3.24557978]
[1729092190233,38.2818,155.39,155.34,3.24557978]
[1729092190725,8.5918,155.39,155.3,5.8]
[1729092190943,3.2179,155.41,155.37,3.2185]
[1729092191230,5.8,155.42,155.36,3.22497701]
[1729092191535,5.8,155.42,155.31,29.69]
[1729092192137,3.219,155.35,155.32,3.2195]
[1729092192327,29.69,155.39,155.32,3.2195]
[1729092192534,5.8,155.38,155.32,3.2195]
[1729092192932,3.2189,155.36,155.32,3.2195]
[1729092193141,5.8,155.38,155.32,3.2195]
[1729092193438,5.8,155.38,155.29,4.6592]
[1729092193439,3.2195,155.33,155.29,4.6592]
[1729092193633,3.2195,155.33,155.29,1.4391]
[1729092194439,3.2195,155.33,155.3,3.2199]
[1729092194741,31.0126,155.37,155.29,1.4391]
[1729092194931,1.3226,155.37,155.29,1.4391]
[1729092195132,3.2192,155.34,155.31,3.2197]
[1729092195439,3.2192,155.34,155.29,1.4391]
[1729092195642,3.2192,155.34,155.31,3.2198]
[1729092196231,1.3226,155.37,155.29,1.4391]
[1729092196537,1.3606,155.38,155.33,3.2193]
[1729092196733,1.3606,155.38,155.34,3.18418142]
[1729092196935,5.8,155.39,155.31,5.8]
[1729092197141,31.0396,155.42,155.31,5.8]
[1729092197440,3.2182,155.39,155.31,5.8]
[1729092198036,3.2182,155.39,155.35,3.2188]
[1729092198239,3.2182,155.39,155.35,6.46511964]
[1729092198433,3.2182,155.39,155.35,3.2188]
[1729092199136,3.2182,155.39,155.35,6.39218804]
[1729092199337,3.2184,155.38,155.35,6.39218804]
[1729092200739,29.69,155.39,155.29,1.4391]
[1729092201037,29.69,155.37,155.31,3.2198]
[1729092201428,35.49,155.37,155.31,3.2198]
[1729092201635,3.2192,155.35,155.31,3.2198]
[1729092201937,5.8,155.37,155.34,3.2191]
[1729092202839,5.8,155.4,155.35,3.15758365]
[1729092203043,5.8,155.4,155.31,5.8]
[1729092203335,5.8,155.4,155.35,3.2188]
[1729092203336,3.2184,155.38,155.35,3.2188]
[1729092203636,3.2184,155.38,155.35,6.43497069]
[1729092203844,3.2184,155.38,155.35,3.21617069]
[1729092204043,3.2184,155.38,155.36,3.2187]
[1729092204344,3.2183,155.39,155.36,3.2187]
[1729092204549,2.6915,155.42,155.35,3.17818568]
[1729092204746,3.218,155.4,155.32,1.4189]
[1729092205141,3.218,155.4,155.33,1.451]
[1729092205744,3.218,155.4,155.37,3.2185]
[1729092206045,3.2177,155.41,155.37,3.28304273]
[1729092206248,1.3419,155.42,155.39,3.2181]
[1729092206548,1.3419,155.42,155.37,3.22060666]
[1729092206749,1.3419,155.42,155.35,5.72]
[1729092207148,1.3419,155.42,155.35,8.99692785]
[1729092207657,1.3419,155.42,155.37,3.2185]
[1729092207658,3.2179,155.41,155.37,3.2185]
[1729092207841,31.0319,155.42,155.35,3.27692785]
[1729092208045,31.0319,155.42,155.32,5.72]
[1729092208352,3.2188,155.36,155.33,3.2192]
[1729092208553,29.69,155.39,155.32,5.72]
[1729092209051,29.69,155.39,155.34,3.2191]
[1729092209250,29.69,155.39,155.35,3.29901821]
[1729092209449,5.72,155.4,155.3,5.72]
[1729092210951,5.72,155.4,155.3,35.41]
[1729092211150,1.3419,155.42,155.3,35.41]
[1729092211748,3.2181,155.4,155.36,3.2186]
[1729092211947,3.2181,155.4,155.36,6.3822473]
[1729092212854,3.2181,155.4,155.37,3.2185]
[1729092213056,1.3419,155.42,155.3,35.41]
[1729092213248,5.72,155.43,155.3,35.41]
[1729092213454,5.72,155.43,155.36,3.2188]
[1729092213653,5.72,155.45,155.36,3.16493451]
[1729092213844,5.72,155.45,155.35,5.72]
[1729092213845,5.72,155.45,155.37,1.4441]
[1729092214045,1.3703,155.47,155.37,4.61418337]
[1729092214251,1.3703,155.47,155.37,1.4441]
[1729092214756,3.2168,155.46,155.42,3.2174]
[1729092215755,1.3703,155.47,155.42,3.2174]
[1729092216061,1.3703,155.47,155.39,5.72]
[1729092216358,5.72,155.48,155.39,5.72]
[1729092216653,3.2165,155.48,155.44,3.2169]
[1729092216958,3.2165,155.48,155.4,2.8128]
[1729092218857,3.2165,155.48,155.44,3.217]
[1729092219056,3.2165,155.48,155.45,3.25056957]
[1729092219453,5.72,155.51,155.41,3.2176]
[1729092219659,29.69,155.46,155.33,29.69]
[1729092219851,29.69,155.44,155.35,5.72]
[1729092220053,3.2178,155.41,155.38,3.2183]
[1729092223250,29.69,155.44,155.33,2.8108]
[1729092223469,3.218,155.4,155.37,7.90187105]
[1729092225257,29.69,155.44,155.37,7.90187105]
[1729092225462,29.69,155.44,155.38,3.2183]
[1729092225463,3.2179,155.41,155.38,3.2183]
[1729092229249,7.075,155.45,155.37,4.68337105]
[1729092229863,3.2176,155.42,155.39,3.218]
[1729092230057,5.72,155.48,155.37,4.68337105]
[1729092230264,5.72,155.48,155.39,5.72]
[1729092230861,5.72,155.48,155.4,1.3752]
[1729092231061,35.41,155.51,155.4,1.3752]
[1729092231460,38.9995,155.54,155.41,29.69]
[1729092231757,3.2163,155.48,155.45,3.2167]
[1729092231960,3.2163,155.48,155.46,3.17291958]
[1729092234470,3.2163,155.48,155.46,6.38961958]
[1729092234672,3.2163,155.48,155.46,3.2167]
[1729092235167,3.2163,155.48,155.46,6.37538454]
[1729092236468,3.2162,155.49,155.46,6.37538454]
[1729092237771,5.72,155.53,155.46,6.37538454]
[1729092237973,3.2163,155.48,155.46,6.37538454]
[1729092238973,32.5692,155.54,155.46,3.15868454]
[1729092239272,1.4374,155.54,155.45,1.3709]
[1729092239471,1.4374,155.54,155.47,5.58]
[1729092240275,3.2155,155.52,155.49,3.2161]
[1729092240471,3.2155,155.52,155.47,8.76356576]
[1729092240670,3.2155,155.52,155.49,3.2159]
[1729092242365,18.54,155.57,155.46,19.9515]
[1729092242771,18.54,155.57,155.47,5.58]
[1729092242971,18.54,155.57,155.47,8.74386384]
[1729092243176,1.4047,155.58,155.49,18.54]
[1729092243372,1.4047,155.58,155.5,1.4331]
[1729092243575,1.4047,155.58,155.53,3.2151]
[1729092243576,3.2146,155.57,155.53,3.2151]
[1729092243774,3.2146,155.57,155.51,5.58]
[1729092244884,3.2141,155.59,155.55,3.2147]
[1729092245076,3.2141,155.59,155.56,3.17365588]
[1729092245273,24.12,155.62,155.51,25.5008]
[1729092245481,24.12,155.62,155.52,1.3826]
[1729092245976,3.2142,155.59,155.55,3.2147]
[1729092246180,3.2142,155.59,155.56,3.24471748]
[1729092246381,24.12,155.62,155.56,3.24471748]
[1729092246573,18.54,155.64,155.56,3.2145]
[1729092246773,24.12,155.64,155.56,6.47593785]
[1729092246973,24.12,155.64,155.56,3.2145]
[1729092247573,3.214,155.59,155.56,6.41799553]
[1729092247771,18.54,155.57,155.5,1.4331]
[1729092248284,3.2152,155.54,155.51,3.2155]
[1729092248478,3.2152,155.54,155.5,1.4331]
[1729092248786,3.2149,155.55,155.5,1.4331]
[1729092249082,3.2149,155.55,155.52,3.2154]
[1729092249276,3.2151,155.54,155.5,1.4331]
[1729092249480,18.54,155.57,155.5,4.6488]
[1729092249777,3.2152,155.54,155.5,4.6488]
[1729092249978,31.0466,155.58,155.5,4.6488]
[1729092250478,3.2153,155.53,155.5,4.6488]
[1729092251082,31.0466,155.58,155.5,1.4331]
[1729092251283,3.2153,155.53,155.5,4.6489]
[1729092251680,29.66,155.55,155.47,8.74386384]
[1729092251984,29.66,155.55,155.47,3.16386384]
[1729092252291,29.66,155.55,155.46,5.58]
[1729092252487,29.66,155.55,155.49,3.216]
[1729092253191,3.2156,155.52,155.49,3.216]
[1729092253888,3.2156,155.52,155.48,3.2162]
[1729092254085,29.66,155.55,155.48,3.2162]
[1729092254290,3.2157,155.51,155.48,3.2162]
[1729092254778,29.66,155.55,155.46,3.2567227]
[1729092254983,29.66,155.55,155.46,8.7965]
[1729092255286,29.66,155.55,155.47,3.23045563]
[1729092255482,3.2154,155.53,155.47,3.2163]
[1729092255686,29.66,155.55,155.48,3.27322395]
[1729092255884,29.66,155.55,155.46,5.58]
[1729092256185,5.58,155.56,155.5,3.2158]
[1729092256784,3.2155,155.52,155.5,3.2158]
[1729092257291,3.2155,155.52,155.46,8.75353838]
[1729092257492,3.2155,155.52,155.49,3.216]
[1729092258990,5.58,155.56,155.48,3.2162]
[1729092258991,3.2158,155.51,155.48,3.2162]
[1729092259589,3.2162,155.49,155.46,3.17353838]
[1729092259780,35.24,155.52,155.43,5.58]
[1729092259984,35.24,155.52,155.43,8.72963008]
[1729092260183,3.2164,155.48,155.44,3.2169]
[1729092260491,3.2164,155.48,155.43,8.72963008]
[1729092260685,3.2164,155.48,155.45,3.2168]
[1729092261283,35.24,155.54,155.43,8.72963008]
[1729092262590,3.2159,155.5,155.47,3.2164]
[1729092263591,3.2163,155.49,155.46,3.2167]
[1729092263793,1.3627,155.53,155.43,8.72963008]
[1729092264191,3.2162,155.49,155.46,3.2166]
[1729092265790,3.2163,155.48,155.45,3.2168]
[1729092267695,3.2163,155.49,155.43,8.72963008]
[1729092268095,1.3241,155.52,155.43,8.72963008]
[1729092268291,3.2164,155.48,155.45,3.2167]
[1729092268489,1.3241,155.52,155.43,8.72963008]
[1729092268692,3.2161,155.49,155.46,3.2166]
[1729092269594,1.3241,155.52,155.43,8.72963008]
[1729092269789,30.9841,155.52,155.43,8.72963008]
[1729092270390,3.2167,155.47,155.44,3.2171]
[1729092271703,3.2167,155.47,155.45,3.2169]
[1729092272002,3.2164,155.48,155.45,3.2169]
[1729092272405,5.52,155.5,155.43,8.72963008]
[1729092272604,3.2165,155.47,155.43,8.72963008]
[1729092272800,5.52,155.5,155.43,8.72963008]
[1729092273005,5.52,155.5,155.43,3.14963008]
[1729092273196,3.2164,155.48,155.45,3.2169]
[1729092274807,3.2167,155.47,155.44,6.39640046]
[1729092275107,5.52,155.5,155.44,3.17930046]
[1729092275309,3.2168,155.46,155.43,3.2172]
[1729092275608,3.2168,155.46,155.44,3.2191784]
[1729092275907,3.2165,155.48,155.45,3.2169]
[1729092276295,5.52,155.5,155.45,3.2169]
[1729092276902,3.2165,155.47,155.44,6.49931186]
[1729092277102,3.2165,155.47,155.44,3.217]
[1729092277705,3.2165,155.47,155.44,6.41375625]
[1729092279307,3.2169,155.45,155.44,3.19675625]
[1729092279507,3.2169,155.45,155.41,21.2274]
[1729092279813,3.2169,155.45,155.41,4.55732353]
[1729092280019,3.2169,155.45,155.42,3.2174]
[1729092280422,3.2172,155.44,155.41,7.77492353]
[1729092280716,18.53,155.46,155.4,3.1903235]
[1729092280912,3.2171,155.45,155.4,6.4081235]
[1729092281112,18.53,155.46,155.4,6.4081235]
[1729092281616,3.2173,155.43,155.4,6.4081235]
[1729092282620,5.52,155.46,155.41,18.53]
[1729092283217,3.2169,155.45,155.42,6.39406299]
[1729092284326,3.2168,155.46,155.43,3.2173]
[1729092287015,3.2169,155.45,155.43,3.2173]
[1729092289822,3.2169,155.45,155.42,6.4602485]
[1729092290023,3.2169,155.45,155.42,3.2174]
[1729092290727,3.2169,155.45,155.42,6.50496635]
[1729092291123,3.2169,155.45,155.42,3.28756635]
[1729092291319,3.2169,155.45,155.43,3.2173]
[1729092291526,24.05,155.49,155.43,3.2173]
[1729092291827,5.52,155.49,155.44,3.2171]
[1729092292221,3.2166,155.47,155.44,3.2171]
[1729092292421,5.52,155.49,155.44,3.2171]
[1729092292721,3.2166,155.47,155.44,3.2171]
[1729092292922,3.2166,155.47,155.42,3.23544914]
[1729092293122,3.2158,155.51,155.43,24.05]
[1729092293318,9.6398,155.63,155.44,1.3573]
[1729092293319,18.53,155.55,155.44,1.3573]
[1729092293527,5.52,155.54,155.45,19.8813]
[1729092293723,3.2151,155.54,155.51,3.2155]
[1729092294124,21.2478,155.57,155.53,3.2151]
[1729092294125,1.3947,155.57,155.53,3.2151]
[1729092294318,24.05,155.59,155.49,18.53]
[1729092294822,3.2145,155.57,155.52,3.2155]
[1729092295129,3.2145,155.57,155.52,3.25132214]
[1729092295327,5.52,155.59,155.49,18.53]
[1729092295632,8.7342,155.59,155.54,3.2149]
[1729092295827,8.7342,155.59,155.55,3.18312987]
[1729092296325,8.7342,155.59,155.55,3.2147]
[1729092296523,8.7342,155.59,155.56,3.27988056]
[1729092296925,8.7342,155.59,155.55,3.2147]
[1729092297226,5.52,155.59,155.52,19.8562]
[1729092297532,3.2144,155.58,155.54,3.215]
[1729092297924,3.2141,155.59,155.52,4.47879394]
[1729092298232,100.31018826,155.61,155.52,4.47879394]
[1729092298622,3.214,155.6,155.56,3.2145]
[1729092298820,100.31018826,155.61,155.52,4.47879394]
[1729092299330,3.2141,155.59,155.55,3.2148]
[1729092300326,23.93,155.62,155.57,3.2143]
[1729092300327,3.2135,155.62,155.57,3.2143]
[1729092300540,3.2135,155.62,155.55,5.4]
[1729092300933,3.2136,155.61,155.58,3.2142]
[1729092301131,18.53,155.64,155.58,3.2142]
[1729092301435,18.53,155.64,155.55,5.4]
[1729092302429,3.2137,155.61,155.58,3.2141]
[1729092302929,18.53,155.64,155.55,23.93]
[1729092303136,21.3294,155.67,155.57,18.53]
[1729092303336,19.9474,155.67,155.58,2.6306]
[1729092303634,3.2129,155.65,155.62,3.2134]
[1729092303833,18.53,155.66,155.58,1.3104]
[1729092304136,3.2135,155.62,155.58,4.5244]
[1729092304335,18.53,155.64,155.58,1.3104]
[1729092304535,18.53,155.66,155.58,1.3104]
[1729092304841,3.2133,155.63,155.59,3.2139]
[1729092305736,3.213,155.64,155.6,3.2137]
[1729092305936,18.53,155.68,155.6,8.66180118]
[1729092306135,18.53,155.68,155.6,5.4]
[1729092306535,3.2129,155.65,155.61,3.2135]
[1729092307439,3.2133,155.63,155.6,11.86039727]
[1729092307631,18.53,155.68,155.6,11.86039727]
[1729092308138,18.53,155.68,155.6,8.64669727]
[1729092308338,18.53,155.68,155.61,3.2136]
[1729092308635,18.53,155.68,155.6,3.24669727]
[1729092308840,18.53,155.66,155.58,6.7104]
[1729092309032,18.53,155.62,155.58,1.3104]
[1729092309427,3.2143,155.58,155.55,3.2148]
[1729092309633,18.53,155.6,155.54,6.7272]
[1729092310340,3.2145,155.57,155.54,5.4]
[1729092310742,3.2145,155.57,155.54,8.615]
[1729092311430,3.2148,155.55,155.52,11.76799394]
[1729092311634,3.2148,155.55,155.52,8.6154]
[1729092311954,18.53,155.6,155.52,5.4]
[1729092311955,3.2147,155.56,155.52,5.4]
[1729092312132,3.2147,155.56,155.52,11.83870957]
[1729092312327,3.2147,155.56,155.52,8.62330957]
[1729092313438,3.2147,155.56,155.53,3.2152]
[1729092315547,18.53,155.6,155.52,8.62330957]
[1729092315747,3.2152,155.54,155.52,3.22330957]
[1729092315941,3.2152,155.54,155.5,6.7987]
[1729092316248,18.53,155.58,155.5,6.7987]
[1729092316737,5.4,155.61,155.5,1.3987]
[1729092316940,18.53,155.59,155.5,1.3987]
[1729092317344,3.2147,155.56,155.52,3.2153]
[1729092317544,3.2147,155.56,155.52,6.41610716]
[1729092317751,18.53,155.59,155.52,3.20080716]
[1729092317946,3.2152,155.54,155.5,4.6145]
[1729092318252,3.2152,155.54,155.5,1.3987]
[1729092318446,18.53,155.57,155.5,1.3987]
[1729092318641,18.53,155.57,155.51,3.14290696]
[1729092318642,3.2155,155.52,155.51,3.14290696]
[1729092319641,3.2153,155.53,155.51,3.14290696]
[1729092320251,3.2151,155.54,155.51,3.14290696]
[1729092321946,3.2153,155.53,155.51,3.14290696]
[1729092322452,23.93,155.57,155.51,3.14290696]
[1729092322650,23.93,155.57,155.5,4.6145]
[1729092322651,18.53,155.55,155.5,1.3987]
[1729092323246,3.2156,155.52,155.5,1.3987]
[1729092324155,1.3359,155.56,155.5,1.3987]
[1729092324349,18.53,155.6,155.5,1.3987]
[1729092324551,18.53,155.6,155.51,23.93]
[1729092324854,5.4,155.6,155.51,27.17375004]
[1729092325051,1.4546,155.61,155.52,1.3106]
[1729092326146,3.2143,155.58,155.55,3.2147]
[1729092326347,1.4546,155.61,155.53,18.53]
[1729092326851,19.9665,155.64,155.53,18.53]
[1729092327049,25.3465,155.64,155.55,18.53]
[1729092327350,25.3465,155.64,155.55,8.5947]
[1729092327655,5.38,155.63,155.55,5.38]
[1729092328456,3.2137,155.61,155.57,3.2144]
[1729092328959,3.2139,155.6,155.57,3.2144]
[1729092329155,18.53,155.62,155.53,18.53]
[1729092329346,18.53,155.58,155.52,5.38]
[1729092329545,3.215,155.55,155.52,5.38]
[1729092330653,3.215,155.55,155.52,8.5954]
[1729092331353,3.2149,155.55,155.52,5.38]
[1729092331750,18.53,155.58,155.52,5.38]
[1729092331945,3.2152,155.53,155.52,5.38]
[1729092332254,3.2152,155.53,155.51,3.24375004]
[1729092332550,18.53,155.56,155.5,1.3987]
[1729092332744,18.53,155.54,155.51,3.17068026]
[1729092332943,18.53,155.54,155.5,1.3987]
[1729092333144,18.53,155.54,155.46,5.38]
[1729092333349,18.53,155.54,155.46,6.7033]
[1729092333652,3.2158,155.51,155.46,6.7033]
[1729092333852,5.38,155.55,155.47,18.53]
[1729092334157,18.53,155.56,155.47,18.53]
[1729092334855,3.2149,155.55,155.51,3.2155]
[1729092335168,3.2149,155.55,155.51,6.5064101]
[1729092335352,3.2151,155.54,155.51,6.5064101]
[1729092335953,3.2143,155.58,155.54,3.215]
[1729092336659,18.53,155.56,155.47,3.2164]
[1729092336959,5.38,155.57,155.46,1.3233]
[1729092337159,3.2156,155.52,155.48,3.2163]
[1729092337556,3.2148,155.56,155.52,3.2153]
[1729092337754,5.38,155.58,155.48,5.38]
[1729092337755,18.53,155.58,155.53,3.23731977]
[1729092337959,18.53,155.58,155.48,5.38]
[1729092338150,18.53,155.58,155.51,3.2155]
[1729092338151,3.215,155.55,155.51,3.2155]
[1729092338350,18.53,155.56,155.51,3.20741901]
[1729092338560,18.53,155.54,155.48,5.38]
[1729092338756,3.2158,155.51,155.48,3.2162]
[1729092339156,18.53,155.54,155.48,3.2162]
[1729092339357,3.2155,155.52,155.48,3.2162]
[1729092339556,18.53,155.54,155.47,3.2164]
[1729092339859,3.216,155.5,155.46,6.7033]
[1729092340057,3.216,155.5,155.46,9.9198]
[1729092340560,3.216,155.5,155.47,3.2164]
[1729092340762,3.2157,155.51,155.47,3.2164]
[1729092341851,19.9629,155.54,155.49,3.216]
[1729092342063,19.9629,155.54,155.46,6.7033]
[1729092342258,19.9629,155.54,155.46,25.2333]
[1729092342458,23.178,155.54,155.5,3.2157]
[1729092342658,21.7451,155.54,155.51,3.28960798]
[1729092342976,3.215,155.55,155.51,3.2155]
[1729092343159,3.215,155.55,155.51,6.49899765]
[1729092343766,3.2151,155.54,155.51,6.49899765]
[1729092344861,18.53,155.56,155.51,3.28349765]
[1729092345168,18.53,155.58,155.5,5.38]
[1729092345364,6.8035,155.6,155.51,5.38]
[1729092345564,6.8035,155.6,155.51,10.01459484]
[1729092345760,6.8035,155.6,155.51,11.36809484]
[1729092346361,1.3105,155.62,155.53,18.53]
[1729092346559,1.3105,155.62,155.54,1.3249]
[1729092346965,3.2141,155.59,155.56,3.2145]
[1729092349370,3.2138,155.6,155.57,3.2143]
[1729092349670,3.2138,155.6,155.54,1.3249]
[1729092350367,23.91,155.63,155.56,3.2145]
[1729092350668,3.214,155.59,155.56,3.2145]
[1729092352165,18.53,155.57,155.51,3.18029484]
[1729092352370,18.53,155.55,155.48,5.38]
[1729092352668,18.53,155.53,155.44,22.7229]
[1729092352970,3.216,155.5,155.45,5.38]
[1729092353270,18.53,155.53,155.45,6.7053]
[1729092353666,3.2158,155.51,155.47,3.2164]
[1729092354162,3.2159,155.5,155.47,3.2164]
[1729092355068,3.2157,155.51,155.47,3.2164]
[1729092356371,3.216,155.5,155.46,3.2166]
[1729092356669,18.53,155.53,155.46,3.2166]
[1729092357067,3.216,155.5,155.46,3.2166]
[1729092357866,3.216,155.5,155.45,6.7053]
[1729092357867,18.53,155.53,155.45,6.7053]
[1729092358173,3.2156,155.52,155.48,3.2162]
[1729092358471,1.4543,155.54,155.45,6.7053]
[1729092358675,3.2155,155.52,155.45,6.7053]
[1729092359356,3.2157,155.51,155.48,3.2161]
[1729092360571,3.2153,155.53,155.5,3.2158]
[1729092360873,3.2153,155.53,155.51,3.14210739]
[1729092361273,3.2155,155.52,155.51,3.14210739]
[1729092361475,3.2155,155.52,155.45,6.7053]
[1729092362172,3.2155,155.52,155.49,3.216]
[1729092362667,18.53,155.54,155.45,6.7053]
[1729092362873,3.2152,155.54,155.51,3.2156]
[1729092363075,3.2152,155.54,155.52,3.15754456]
[1729092363264,5.44,155.56,155.52,3.15754456]
[1729092363461,3.2149,155.55,155.52,3.2154]
[1729092363665,3.2149,155.55,155.52,6.45293009]
[1729092364672,3.2149,155.55,155.52,3.23753009]
[1729092364968,23.97,155.62,155.52,18.53]
[1729092365174,23.97,155.62,155.57,3.2144]
[1729092365568,3.2141,155.59,155.57,3.2144]
[1729092365781,23.97,155.62,155.53,6.8177]
[1729092366177,3.214,155.6,155.57,3.2143]
[1729092367480,18.53,155.6,155.53,1.3777]
[1729092367771,5.44,155.62,155.53,1.3777]
[1729092367772,18.53,155.58,155.53,1.3777]
[1729092368078,3.2148,155.56,155.53,3.2151]
[1729092368279,18.53,155.58,155.54,3.28300109]
[1729092368480,18.53,155.58,155.51,5.42]